[Event "Torneo Interdepartamental 2020"]
[Site "Punta del Este"]
[Date "2020.10.31"]
[Round "1.8"]
[White "Nakle, Gonzalo"]
[Black "Zecharies, Alexis"]
[Result "0-1"]
[ECO "D10"]
[WhiteElo "1655"]
[BlackElo "1823"]
[Annotator "NA RC"]
[PlyCount "56"]
[EventDate "2020.10.31"]
[EventType "team-tourn"]
[EventCountry "URU"]
[SourceTitle "playchess.com"]
[Source "ChessBase"]
[SourceQuality "1"]
[TimeControl "3600+30"]

{[%evp 10,54,26,-72,-60,-60,32767,32767,32767,32767,32767,32767,32767,32767,-179,-192,-102,-227,-102,-137,-116,-109,-127,-110,-101,-221,32767,32767,32767,32767,32767,-363,-375,-701,-827,-733,32767,-784,-429,-612,-555,-1055,-644,-984,32767,-3118,-796]} 1. d4 {[%emt 0:03:24]} d5 {[%emt 0:00:19]} 2. c4 {[%emt 0:00:19]} c6 {[%emt 0:00:13]} 3. Nc3 {[%emt 0:01:11]} Nf6 {[%emt 0:01:15]} 4. cxd5 {[%emt 0:00:25]} cxd5 {[%emt 0:00:11]} 5. Bf4 {[%emt 0:00:30]} Nc6 {[%emt 0:03:14]} 6. g3 {[%emt 0:01:03] D10: Slav Defence: 3 cxd5 (without early Nf3) and 3 Nc3.} (6. e3 $11) 6... Qb6 {[%emt 0:01:43] [#]} 7. Nf3 $146 {[%emt 0:00:46]} ({Predecessor:} 7. Qd2 e6 8. Nf3 Ne4 9. Qc2 Nxd4 10. Nxd4 Qxd4 11. e3 Qb4 12. a3 Qa5 13. Rc1 Nxc3 14. Qxc3 Qxc3+ 15. Rxc3 {0-1 (34) Conde Chamizo,P (1791)-Sempere Domenech,A (1932) Salobrena 2020}) 7... Qxb2 {[%emt 0:04:51]} 8. Rc1 {[%emt 0:00:10]} e6 {[%emt 0:02:18]} 9. Qc2 {[%emt 0:02:00]} Qxc2 10. Rxc2 {[%emt 0:00:08]} Bb4 {[%emt 0:02:56]} 11. Kd1 {[%emt 0:03:25]} a6 {[%emt 0:01:50]} (11... Bxc3 $142 12. Rxc3 Ne4 {[%mdl 64] Double Attack} 13. Rxc6 bxc6) 12. Na4 {[%emt 0:00:27]} Ba5 {[%emt 0:03:25]} (12... Ne4 $19 13. Be3 Bd7) 13. e3 {[%emt 0:00:42]} (13. Bd2 $17 Bd8 14. e3) 13... O-O {[%emt 0:04:22]} (13... Ne4 $19 {and Black stays clearly on top.} 14. h3 f6) 14. Nc5 {[%emt 0:00:17]} Nb4 {[%emt 0:03:45]} 15. Rb2 {[%emt 0:00:07]} b6 {[%emt 0:00:24]} 16. Nb3 {[%emt 0:00:23]} Bd7 {[%emt 0:10:55]} 17. Bd6 {[%emt 0:00:42]} (17. Nxa5 $17 bxa5 18. Ne1) 17... Rfc8 {[%emt 0:04:20]} 18. Nxa5 {[%emt 0:01:28]} bxa5 {[%emt 0:00:03]} 19. Bxb4 {[%emt 0:00:22]} Ba4+ {[%emt 0:02:59]} 20. Ke1 {[%emt 0:02:03]} (20. Ke2 $142 axb4 21. Nd2) 20... axb4 {[%emt 0:02:42]} 21. Rxb4 $2 {[%emt 0:01:00]} (21. Ke2 Rc1 22. Bg2 Bb5+ 23. Kd2 Rxh1 24. Bxh1) 21... Rc1+ {[%emt 0:01:28]} 22. Kd2 {[%emt 0:00:56]} Rc2+ {[%emt 0:00:03]} 23. Ke1 {[%emt 0:02:34]} Rxa2 {[%emt 0:00:49]} 24. Nd2 $2 {[%emt 0:00:05]} (24. Rb1) 24... Rc8 {[%emt 0:01:01]} 25. Bd3 {[%emt 0:00:25]} Rc1+ {[%emt 0:02:58]} 26. Ke2 {[%emt 0:00:06]} Rxh1 {[%emt 0:00:30]} 27. Bb1 {[%emt 0:01:37]} Rxb1 $19 {[%emt 0:04:36]} 28. Rxb1 {[%emt 0:00:06]} Bb5+ {[%emt 0:00:04]} 0-1

[Event "Torneo Interdepartamental 2020"]
[Site "Punta del Este"]
[Date "2020.10.31"]
[Round "1.9"]
[White "Pinero, Ismael"]
[Black "Alzugaray, Ernesto"]
[Result "1/2-1/2"]
[ECO "C11"]
[WhiteElo "1882"]
[BlackElo "1620"]
[Annotator "NA RC"]
[PlyCount "98"]
[EventDate "2020.10.31"]
[EventType "team-tourn"]
[EventCountry "URU"]
[SourceTitle "playchess.com"]
[Source "ChessBase"]
[SourceQuality "1"]
[TimeControl "3600+30"]

1. e4 {[%emt 0:00:00]} e6 {[%emt 0:00:00]} 2. d4 {[%emt 0:00:00]} d5 {[%emt 0:00:00]} 3. Nc3 {[%emt 0:00:04]} Nf6 {[%emt 0:00:07]} 4. e5 {[%emt 0:00:05]} Nfd7 {[%emt 0:00:17]} 5. f4 {[%emt 0:00:20]} c5 {[%emt 0:00:28]} 6. Nf3 {[%emt 0:00:01]} Qb6 {[%emt 0:00:46]} 7. Na4 {[%emt 0:03:42] C11: French: Classical System: 4 e5 and 4 Bg5 dxe4.} Qa5+ {[%emt 0:02:08]} 8. c3 {[%emt 0:00:03]} Nc6 {[%emt 0:07:23]} 9. dxc5 {[%emt 0:01:57]} Nxc5 {[%emt 0:04:06]} 10. Nxc5 {[%emt 0:00:29]} Qxc5 {[%emt 0:00:59]} 11. Nd4 {[%emt 0:02:17] [#]} Nxd4 $146 {[%emt 0:01:21]} ({Predecessor:} 11... Be7 12. Nb3 Qb6 13. Qf3 f6 14. Be3 Qc7 15. exf6 Bxf6 16. O-O-O O-O 17. g3 a6 {1-0 (60) Bradler,S (1757)-Hulm,S (1494) Helmstedt 2005}) 12. Qxd4 {[%emt 0:00:12]} Qxd4 {[%emt 0:00:46]} 13. cxd4 {[%emt 0:00:13]} Bb4+ {[%emt 0:00:51]} 14. Bd2 {[%emt 0:00:09]} Bxd2+ {[%emt 0:00:35]} 15. Kxd2 {[%emt 0:00:00]} Bd7 {[%emt 0:00:41]} 16. Rc1 {[%emt 0:00:26]} Rc8 {[%emt 0:01:42]} 17. Rxc8+ Bxc8 {[%emt 0:00:09]} 18. Bd3 {[%emt 0:02:11]} Bd7 {[%emt 0:05:48]} 19. Rc1 {[%emt 0:00:27]} Kd8 {[%emt 0:00:25]} 20. g4 {[%emt 0:06:01]} h5 {[%emt 0:07:00]} 21. g5 {[%emt 0:00:52]} g6 {[%emt 0:00:33]} 22. h4 {[%emt 0:00:26]} Re8 {[%emt 0:00:55]} 23. Rc5 {[%emt 0:02:38]} Re7 {[%emt 0:12:31]} 24. Kc2 {[%emt 0:06:21]} Be8 {[%emt 0:03:00]} 25. Kb3 {[%emt 0:01:03]} Rc7 {[%emt 0:01:16]} 26. Kb4 {[%emt 0:05:02]} b6 {[%emt 0:07:55]} 27. Rc3 {[%emt 0:04:15]} Kc8 {[%emt 0:01:10]} 28. Ba6+ {[%emt 0:01:32]} Kb8 {[%emt 0:01:09]} 29. a4 {[%emt 0:00:13]} Rxc3 {[%emt 0:01:39]} 30. bxc3 {[%emt 0:00:04]} Kc7 {[%emt 0:00:28]} 31. a5 {[%emt 0:12:17]} Bc6 {[%emt 0:03:05]} 32. c4 {[%emt 0:01:03]} dxc4 {[%emt 0:00:28]} 33. Bxc4 {[%emt 0:00:02]} Kb7 {[%emt 0:03:28]} 34. f5 {[%emt 0:04:59]} gxf5 {[%emt 0:01:44]} 35. g6 {[%emt 0:00:16]} fxg6 {[%emt 0:00:06]} 36. Bxe6 {[%emt 0:00:03]} Be8 {[%emt 0:00:06]} 37. d5 {[%emt 0:00:14]} Kc7 {[%emt 0:00:47]} 38. d6+ {[%emt 0:02:27]} Kd8 {[%emt 0:02:03]} 39. axb6 {[%emt 0:01:32]} axb6 {[%emt 0:00:04]} 40. Bc4 $2 {[%emt 0:01:44]} (40. Bd5 Bd7 41. Kc4) 40... Bc6 {[%emt 0:00:56] [#]} 41. e6 $1 {[%emt 0:00:16]} f4 {[%emt 0:00:21]} 42. Bb5 $19 {[%emt 0:12:01]} (42. Bd3 $18 {avoids the disaster.} f3 43. Bxg6) 42... Bxb5 {[%emt 0:00:17]} 43. Kxb5 {[%emt 0:00:02]} f3 {[%emt 0:00:19]} 44. Kc6 {[%emt 0:00:02]} f2 {[%emt 0:01:05]} 45. e7+ {[%emt 0:00:11]} Ke8 {[%emt 0:00:48]} 46. Kc7 {[%emt 0:00:03]} f1=Q {[%emt 0:00:15]} 47. d7+ {[%emt 0:00:02]} Kxe7 {[%emt 0:00:14]} 48. d8=Q+ {[%emt 0:00:05]} Ke6 {[%emt 0:00:07]} 49. Qd6+ {[%emt 0:00:11]} Kf7 {[%emt 0:00:17]} 1/2-1/2

[Event "Torneo Interdepartamental 2020"]
[Site "Punta del Este"]
[Date "2020.10.31"]
[Round "1.10"]
[White "Barla, Rafael"]
[Black "Vaz Lacuesta, Leonardo"]
[Result "1-0"]
[ECO "D02"]
[WhiteElo "1836"]
[BlackElo "2085"]
[Annotator "RC"]
[PlyCount "55"]
[EventDate "2020.10.31"]
[EventType "team-tourn"]
[EventCountry "URU"]
[SourceTitle "playchess.com"]
[Source "ChessBase"]
[SourceQuality "1"]
[TimeControl "3600+30"]

1. d4 {[%emt 0:00:00]} d5 {[%emt 0:00:00]} 2. Nf3 {[%emt 0:00:21]} e6 {[%emt 0:00:43]} 3. Bf4 {[%emt 0:00:44]} Nf6 {[%emt 0:00:25]} 4. e3 {[%emt 0:00:37]} c5 {[%emt 0:01:16]} 5. c3 {[%emt 0:00:10]} Nc6 {[%emt 0:00:35]} 6. Bd3 {[%emt 0:00:22]} Bd6 {[%emt 0:00:34]} 7. Bg3 {[%emt 0:01:21]} Bxg3 8. hxg3 {[%emt 0:00:09]} c4 {[%emt 0:06:25]} 9. Bc2 {[%emt 0:00:13]} Qc7 {[%emt 0:01:21]} 10. Nbd2 {[%emt 0:00:39]} e5 {[%emt 0:05:22]} 11. dxe5 {[%emt 0:02:32]} Nxe5 {[%emt 0:00:06]} 12. Nxe5 {[%emt 0:01:30]} Qxe5 {[%emt 0:00:05]} 13. Nf3 {[%emt 0:03:30]} Qc7 {[%emt 0:04:07]} 14. Ba4+ {[%emt 0:04:03]} Bd7 {[%emt 0:02:02]} 15. Bxd7+ Qxd7 {[%emt 0:00:05]} 16. Qd4 {[%emt 0:01:21]} a6 {[%emt 0:03:18]} 17. Rd1 {[%emt 0:00:33]} O-O-O {[%emt 0:03:39]} 18. Qa7 {[%emt 0:02:54]} Rhe8 {[%emt 0:00:58]} 19. Rh4 {[%emt 0:03:18]} Qb5 {[%emt 0:04:25]} 20. b3 {[%emt 0:03:16]} Re4 {[%emt 0:12:54]} 21. Nd4 {[%emt 0:13:22]} Qa5 {[%emt 0:01:49]} 22. b4 {[%emt 0:09:46]} Qc7 {[%emt 0:09:24]} 23. b5 {[%emt 0:05:28]} axb5 {[%emt 0:05:24]} 24. Rxe4 {[%emt 0:01:07]} Nxe4 {[%emt 0:00:13]} 25. Nxb5 {[%emt 0:00:12]} Qc6 {[%emt 0:01:49]} 26. Qa5 {[%emt 0:02:48]} Qc5 {[%emt 0:04:32]} 27. Na7+ {[%emt 0:02:25]} Kb8 {[%emt 0:01:17]} 28. Qxd8+ {[%emt 0:00:16]} 1-0

[Event "Torneo Interdepartamental 2020"]
[Site "Punta del Este"]
[Date "2020.10.31"]
[Round "1.11"]
[White "Pinero, Ismael"]
[Black "Alzugaray, Ernesto"]
[Result "*"]
[ECO "B06"]
[WhiteElo "1882"]
[BlackElo "1620"]
[Annotator "NA RC"]
[PlyCount "115"]
[EventDate "2020.10.31"]
[EventType "team-tourn"]
[EventCountry "URU"]
[SourceTitle "playchess.com"]
[Source "ChessBase"]
[SourceQuality "1"]
[TimeControl "3600+30"]

1. e4 {[%emt 0:00:00]} g6 {[%emt 0:00:00]} 2. d4 {[%emt 0:00:00]} Bg7 {[%emt 0:00:09]} 3. Nc3 {[%emt 0:00:05]} e6 {[%emt 0:00:08]} 4. Be3 {[%emt 0:00:22]} d5 {[%emt 0:00:09]} 5. Qd2 {[%emt 0:00:23]} Nc6 {[%emt 0:00:32]} 6. Bb5 {[%emt 0:00:11] [#] B06: Modern Defence.} a6 $146 ({Predecessor:} 6... dxe4 7. O-O-O Nf6 8. f3 exf3 9. Nxf3 O-O 10. Bxc6 bxc6 11. Bh6 Rb8 12. Rhe1 Qd6 13. Bxg7 Kxg7 {1-0 (40) Lyell,M (2239)-Vegh,E (2271) Budapest 2016}) 7. Bxc6+ bxc6 {[%emt 0:01:09]} 8. Nf3 {[%emt 0:00:41]} Nf6 9. e5 Ne4 10. Nxe4 dxe4 {[%emt 0:02:31]} 11. Ng5 {[%emt 0:01:02]} Qd5 {[%emt 0:00:37]} 12. O-O {[%emt 0:00:31]} h6 13. Nh3 O-O 14. Bxh6 c5 {[%emt 0:02:28]} 15. c3 {[%emt 0:01:57]} Bb7 {[%emt 0:00:13]} 16. Bxg7 {[%emt 0:00:37]} e3 17. fxe3 Kxg7 {[%emt 0:01:43]} 18. Qf2 {[%emt 0:00:56]} f5 {[%emt 0:00:49]} 19. Qg3 {[%emt 0:01:11]} Rh8 {[%emt 0:00:23]} 20. Nf4 {[%emt 0:00:14]} Qc6 {[%emt 0:01:25]} 21. Qxg6+ {[%emt 0:00:28]} Kf8 {[%emt 0:00:25]} 22. Nxe6+ {[%emt 0:01:12]} Ke7 {[%emt 0:00:13]} 23. Qf6+ {[%emt 0:00:26]} Ke8 {[%emt 0:00:44]} 24. Ng7+ {[%emt 0:00:29]} Kd7 {[%emt 0:00:26]} 25. Qxf5+ {[%emt 0:03:30]} Kd8 {[%emt 0:00:25]} 26. Ne6+ {[%emt 0:01:35] Double Attack} Kc8 {[%emt 0:02:45]} 27. Nxc5+ {[%emt 0:00:12]} Kb8 {[%emt 0:00:55]} 28. Nxb7 Kxb7 29. Qf3 {[%emt 0:00:57]} Rhf8 {[%emt 0:00:44]} 30. Qxc6+ {[%emt 0:00:10]} Kxc6 {[%emt 0:00:19]} 31. Rxf8 {[%emt 0:00:03]} Rxf8 {[%emt 0:00:18]} 32. Rf1 {[%emt 0:00:02]} Rb8 {[%emt 0:00:28]} 33. b3 {[%emt 0:00:17]} Kd5 34. Rf4 {[%emt 0:00:20]} a5 {[%emt 0:00:48]} 35. e4+ {[%emt 0:00:21]} Ke6 {[%emt 0:00:38]} 36. g4 {[%emt 0:00:28]} Rh8 {[%emt 0:00:36]} 37. Kg2 {[%emt 0:00:13]} c6 {[%emt 0:00:57]} 38. Kg3 {[%emt 0:00:10]} Rd8 {[%emt 0:00:24]} 39. g5 {[%emt 0:00:12]} c5 {[%emt 0:00:10]} 40. Rf6+ {[%emt 0:00:14]} Ke7 {[%emt 0:00:17]} 41. d5 {[%emt 0:00:13]} Rc8 {[%emt 0:00:57]} 42. c4 {[%emt 0:00:13]} Rg8 {[%emt 0:00:27]} 43. Kg4 {[%emt 0:00:15]} Rh8 {[%emt 0:00:35]} 44. h4 {[%emt 0:00:08]} Ra8 {[%emt 0:00:55]} 45. g6 {[%emt 0:00:46]} a4 {[%emt 0:00:08]} 46. g7 {[%emt 0:00:17]} Rg8 {[%emt 0:00:22]} 47. Rg6 {[%emt 0:00:18]} Kf7 {[%emt 0:00:19]} 48. h5 {[%emt 0:00:07]} a3 {[%emt 0:00:49]} 49. Kg5 {[%emt 0:00:22]} Rxg7 {[%emt 0:00:49]} 50. Rxg7+ {[%emt 0:00:09]} Kxg7 {[%emt 0:00:22]} 51. e6 {[%emt 0:00:04]} Kf8 {[%emt 0:00:18]} 52. d6 {[%emt 0:00:07]} Ke8 {[%emt 0:00:16]} 53. h6 {[%emt 0:00:08]} Kd8 {[%emt 0:00:21]} 54. h7 {[%emt 0:00:09]} Kc8 {[%emt 0:00:04]} 55. h8=Q+ {[%emt 0:00:07]} Kb7 {[%emt 0:00:09]} 56. Qd8 {[%emt 0:00:24]} Ka6 {[%emt 0:00:13]} 57. Qb8 {[%emt 0:00:14]} Ka5 {[%emt 0:00:10]} 58. Qb5# {[%emt 0:00:08]} *

[Event "Torneo Interdepartamental 2020"]
[Site "Punta del Este"]
[Date "2020.10.31"]
[Round "1.12"]
[White "Agrasot, Antonio"]
[Black "Barboza, Mauro"]
[Result "0-1"]
[ECO "C45"]
[WhiteElo "1560"]
[BlackElo "1874"]
[Annotator "NA RC"]
[PlyCount "151"]
[EventDate "2020.10.31"]
[EventType "team-tourn"]
[EventCountry "URU"]
[SourceTitle "playchess.com"]
[Source "ChessBase"]
[SourceQuality "1"]
[TimeControl "3600+30"]

{[%evp 24,151,10,32767,32767,32767,32767,32767,32767,32767,32767,32767,32767,32767,-60,32767,32767,32767,32767,32767,32767,32767,32767,32767,-85,-126,-164,-237,-227,-434,-142,-147,-112,-152,-112,-116,32767,32767,32767,32767,-108,-65,-76,32767,32767,-74,-19,-91,-48,-107,-90,-150,-67,-95,-100,-101,-59,32767,-16,-8,-8,-6,0,0,-7,0,0,0,0,0,0,0,0,-30,0,0,-60,-277,0,-247,-8,-8,0,-251,-249,-368,-1113,-416,-656,-935,-1117,-5408,-1195,-1083,32767,32767,32767,32767,32767,32767,32767,32767,32767,32767,32767,32767,-29975,-29979,-29981,-29981,-29982,-29982,-29981,-29981,-29974,-29975,0,0,-27992,-29976,-29977,-29977,-29978,-29978,-29978,-29984,-27999,-27996,-29991,-27999]} 1. e4 {[%emt 0:00:00]} e5 {[%emt 0:00:00]} 2. Nf3 {[%emt 0:00:00]} Nc6 {[%emt 0:00:00]} 3. d4 {[%emt 0:00:14]} exd4 {[%emt 0:00:00]} 4. Nxd4 {[%emt 0:00:16]} Bc5 {[%emt 0:00:00]} 5. Nxc6 {[%emt 0:00:54]} bxc6 {[%emt 0:00:06]} 6. Bd3 {[%emt 0:00:27]} d6 {[%emt 0:00:32] 6...d6 was played by the boomers.} 7. O-O {[%emt 0:00:30]} Nf6 {[%emt 0:03:19]} 8. Be3 {[%emt 0:01:52] C45: Scotch Game.} Bxe3 9. fxe3 {[%emt 0:00:09] [#]} Rb8 $146 {[%emt 0:06:03]} ({Predecessor:} 9... Qe7 10. Nc3 Qe5 11. Qf3 Rb8 12. Rab1 O-O 13. Qf4 Re8 14. Qxe5 Rxe5 15. h3 Bd7 {0-1 (62) Murzynski,R (1637)-Ludewig,R (1897) Differdingen 2007}) 10. b3 {[%emt 0:01:25]} Qe7 {[%emt 0:00:16]} 11. Nd2 {[%emt 0:01:16]} Bg4 {[%emt 0:01:09]} 12. Qe1 {[%emt 0:00:29]} Bh5 {[%emt 0:05:07]} 13. Qh4 {[%emt 0:01:50]} Bg6 {[%emt 0:00:18]} 14. Rae1 {[%emt 0:02:00]} O-O {[%emt 0:02:30]} 15. e5 {[%emt 0:03:17]} Qxe5 {[%emt 0:01:57]} 16. Bxg6 {[%emt 0:01:35]} fxg6 {[%emt 0:00:46]} 17. h3 {[%emt 0:01:59]} d5 {[%emt 0:00:31]} 18. Qd4 {[%emt 0:01:05]} Rfe8 {[%emt 0:01:26]} 19. Qxe5 {[%emt 0:04:25]} Rxe5 {[%emt 0:00:09]} 20. Nf3 {[%emt 0:00:08]} Re7 {[%emt 0:00:27]} 21. Nd4 {[%emt 0:00:56]} Rb6 {[%emt 0:00:15]} 22. b4 {[%emt 0:01:08]} Ne4 {[%emt 0:01:37]} 23. a4 {[%emt 0:00:57]} Re8 {[%emt 0:06:48]} 24. a5 {[%emt 0:02:13]} Rxb4 {[%emt 0:02:20]} 25. Nxc6 {[%emt 0:00:24]} (25. Rb1 $17 Rxb1 26. Rxb1) 25... Rc4 {[%emt 0:03:56]} 26. Nxa7 $2 {[%emt 0:00:46]} (26. Nd4 {was the only defense.}) 26... Ra8 $2 {[%emt 0:00:18]} (26... Nc3 $19 27. Kh2 Ra8) 27. Nb5 {[%emt 0:00:29]} Rxa5 {[%emt 0:01:11]} 28. Ra1 {[%emt 0:00:18]} Rxa1 {[%emt 0:00:13]} 29. Rxa1 Rxc2 {[%emt 0:00:14]} 30. Ra8+ {[%emt 0:01:10]} Kf7 31. Ra7 Rc1+ {[%emt 0:06:23]} 32. Kh2 {[%emt 0:00:44]} Kf6 33. Nxc7 {[%emt 0:02:11]} Ke5 {[%emt 0:16:53]} 34. Ne8 {[%emt 0:01:09]} Rc3 {[%emt 0:00:39]} 35. Re7+ $1 {[%emt 0:02:18]} Kf5 {[%emt 0:00:08]} 36. Rxg7 {[%emt 0:01:14]} ({Better is} 36. Nc7 $15) 36... Rxe3 {[%emt 0:00:44]} 37. Nc7 {[%emt 0:02:24]} (37. Rxh7 $142 d4 38. Rd7) 37... Nc3 {[%emt 0:04:45]} (37... Nf6 $17 38. Nb5 Ke4) 38. Rxh7 {[%emt 0:03:15]} d4 {[%emt 0:00:19]} 39. Rf7+ {[%emt 0:00:26]} Kg5 {[%emt 0:00:47]} 40. h4+ {[%emt 0:01:54]} Kh5 {[%emt 0:03:56]} 41. Rd7 {[%emt 0:02:44]} d3 {[%emt 0:00:31]} 42. Nd5 $1 {[%emt 0:01:07]} Nxd5 {[%emt 0:00:33]} 43. Rxd5+ {[%emt 0:00:03]} Kxh4 {[%emt 0:00:31]} 44. Rd4+ $1 {[%emt 0:00:28]} Kg5 {[%emt 0:00:35]} 45. Kg1 {[%emt 0:02:32]} Kf5 {[%emt 0:01:39]} 46. Kf2 $1 {[%emt 0:00:55]} Re2+ {[%emt 0:00:15]} 47. Kf3 {[%emt 0:00:06]} Rd2 {[%emt 0:00:10]} 48. g4+ {[%emt 0:03:29]} Kg5 {[%emt 0:01:07]} 49. Ke3 {[%emt 0:02:01]} Rd1 {[%emt 0:00:09]} 50. Kf2 {[%emt 0:03:20]} Kh4 {[%emt 0:00:31]} 51. Kf3 $19 {[%emt 0:02:42]} (51. Rd6 $1 $11) 51... Rh1 {[%emt 0:02:06]} 52. Kg2 $1 {[%emt 0:01:18]} Rd1 {[%emt 0:00:04]} 53. Kf3 {[%emt 0:01:30] [#]} d2 $1 {[%emt 0:00:04]} 54. Ke2 $2 {[%emt 0:00:43]} (54. Kg2) 54... Rg1 {[%emt 0:00:11]} 55. Kxd2 {[%emt 0:01:19]} Rxg4 {[%emt 0:00:12]} 56. Rd8 {[%emt 0:00:35]} Re4 {[%emt 0:00:38]} 57. Kd3 {[%emt 0:00:49]} Re5 {[%emt 0:00:13]} 58. Rd4+ {[%emt 0:02:10]} Kg3 {[%emt 0:00:18]} 59. Rd6 {[%emt 0:00:38]} g5 {[%emt 0:00:43]} 60. Rf6 {[%emt 0:00:30]} g4 {[%emt 0:00:15]} 61. Kd2 {[%emt 0:00:41]} Kg2 {[%emt 0:00:11]} 62. Rg6 {[%emt 0:00:57]} g3 {[%emt 0:00:11]} 63. Rf6 {[%emt 0:00:18]} Kg1 {[%emt 0:00:13]} 64. Rg6 {[%emt 0:01:00]} g2 {[%emt 0:00:18]} 65. Rg7 {[%emt 0:00:33]} Rh5 {[%emt 0:00:36]} 66. Ke2 Kh2 67. Kf2 Rf5+ 68. Ke2 {[%emt 0:04:11]} Rf4 {[%emt 0:02:06]} 69. Rh7+ {[%emt 0:00:58]} Kg3 $2 {[%emt 0:00:10]} 70. Rg7+ {[%emt 0:00:06]} Kh2 {[%emt 0:01:03]} 71. Rh7+ {[%emt 0:00:14]} Kg1 {[%emt 0:00:12] mates} 72. Ke3 {[%emt 0:00:53]} (72. Rh8 Re4+ 73. Kd3 {[#]} Kf2 $1 {[%mdl 512]} 74. Kxe4 g1=Q 75. Rf8+ Ke2 76. Rf6 Qe3+ 77. Kd5 Qg5+ 78. Ke6 Ke3 79. Kf7 Qh5+ 80. Ke7 Qh4 81. Kf7 Qc4+ 82. Kg6 Qg4+ 83. Kf7 Qc4+ 84. Ke8 Qc8+ 85. Ke7 Qc7+ 86. Kf8 Ke4 87. Ke8 Ke5 88. Rg6 Kf5 89. Rh6 Qe5+ 90. Kf7 Qc7+ 91. Ke8 Qe5+ 92. Kf7 Qd4 93. Rh5+ Kg4 94. Rh6 Qd7+ 95. Kf6 Qd6+ 96. Kg7 Qd7+ 97. Kf6 Qd6+ 98. Kg7 Qe7+ 99. Kg8 Qe8+ 100. Kg7 Kg5 101. Rh1 Qe5+ 102. Kf8 Qc5+ 103. Kg7 Qa7+ 104. Kf8 Qa8+ 105. Ke7 Qxh1 106. Kd6 Kf6 107. Kc5 Qe4 108. Kb5 Ke7 109. Kc5 Kd7 110. Kb5 Kd6 111. Ka6 Qb4 112. Ka7 Kc6 113. Ka8 Qb7#) 72... Rf6 {[%emt 0:00:55]} 73. Ke2 {[%emt 0:00:00]} Re6+ {[%emt 0:00:18]} 74. Kf3 {[%emt 0:00:34]} Kf1 {[%emt 0:00:12]} 75. Ra7 {[%emt 0:01:59]} g1=Q {[%emt 0:00:13]} 76. Ra8 0-1

[Event "Torneo Interdepartamental 2020"]
[Site "Punta del Este"]
[Date "2020.10.31"]
[Round "2.8"]
[White "Chamlian, Aram"]
[Black "Casas, Nicolas"]
[Result "1-0"]
[ECO "B01"]
[WhiteElo "1710"]
[BlackElo "1812"]
[Annotator "NA RC"]
[PlyCount "48"]
[EventDate "2020.10.31"]
[EventType "team-tourn"]
[EventCountry "URU"]
[SourceTitle "playchess.com"]
[Source "ChessBase"]
[SourceQuality "1"]
[TimeControl "3600+30"]

{[%evp 8,48,74,42,99,57,62,31,40,44,47,0,57,47,90,67,71,77,66,56,79,61,179,175,165,155,141,151,162,158,141,160,176,157,177,107,123,31,138,43,183,213,203]} 1. e4 {[%emt 0:04:18]} d5 {[%emt 0:03:01]} 2. exd5 {[%emt 0:00:08]} Nf6 {[%emt 0:00:13]} 3. d4 {[%emt 0:01:14]} Nxd5 {[%emt 0:00:23]} 4. Nf3 {[%emt 0:03:14]} Bg4 {[%emt 0:00:40]} 5. Be2 {[%emt 0:02:27]} g6 {[%emt 0:01:27]} 6. O-O {[%emt 0:01:04] B01: Scandinavian Defence.} Bg7 $1 {[%emt 0:00:22]} 7. Ne5 {[%emt 0:01:17]} Bxe2 {[%emt 0:02:20]} 8. Qxe2 {[%emt 0:00:14]} O-O {[%emt 0:00:32] [#]} 9. c4 $146 {[%emt 0:02:39]} ({Predecessor:} 9. Rd1 c6 10. c4 Nb6 11. Nc3 N8d7 12. Bf4 Nxe5 13. dxe5 Qc8 14. c5 Qf5 15. Qe4 Qxe4 16. Nxe4 Nd5 {½-½ (16) Meade,P (1950)-Jina,T (1724) England 2014}) 9... Nf6 {[%emt 0:00:42]} 10. Be3 {[%emt 0:01:13]} Nbd7 {[%emt 0:07:52]} (10... Nfd7 $11) 11. Nc3 {[%emt 0:07:22]} c6 {[%emt 0:02:42]} 12. Rad1 {[%emt 0:01:01]} Qc7 {[%emt 0:01:04]} 13. Bg5 {[%emt 0:05:45]} e6 {[%emt 0:10:23]} 14. Rfe1 {[%emt 0:04:08]} c5 {[%emt 0:06:37]} ({Black should play} 14... a6 $14) 15. Nb5 {[%emt 0:04:58]} Qb6 {[%emt 0:07:36]} 16. dxc5 {[%emt 0:01:15]} Qxc5 {[%emt 0:00:50]} 17. Nxd7 {[%emt 0:02:52]} Nxd7 {[%emt 0:02:28] [#]} 18. Be3 $1 {[%emt 0:00:49]} ({Don't take} 18. Rxd7 $6 Qxg5 19. Rxb7 Qc5 $14) 18... Qe7 {[%emt 0:02:27]} 19. Bxa7 {[%emt 0:02:49]} Nb8 {[%emt 0:08:16]} 20. Qe3 {[%emt 0:00:57]} Na6 {[%emt 0:04:37]} 21. Re2 {[%emt 0:04:45]} (21. b3 $18) 21... Rfd8 {[%emt 0:02:25]} 22. Red2 {[%emt 0:00:33]} (22. Rdd2 $16) 22... Rxd2 {[%emt 0:00:23]} (22... Bxb2 $1 $11 23. h3 Rxd2 24. Qxd2 Bf6) 23. Qxd2 {[%emt 0:00:50]} (23. Rxd2 $16 Nb8 24. g3) 23... Qb4 {[%emt 0:02:46] [#]} (23... Nc7 $14 24. Nd6 Ne8 25. Nxe8 Qxe8) 24. b3 $1 {[%emt 0:02:10]} Bf8 $18 1-0